Cogmind - Beta 14 *** ADVENTURER MODE // 2024.08.29 @ 14:55:11 Player: Ms. V3-11A Result: Destroyed by 5U-6NR(R) with Subdweller Beam Cannon Performance ------------- Evolutions (0) 0 Regions Visited (2) 400 Robots Destroyed (32) 160 Value Destroyed (1055) 1055 Prototype IDs (2) 40 Alien Tech Used (0) 0 Bonus (0) 0 TOTAL SCORE: 1655 Bonus ------- None Cogmind --------- Core Integrity 0/250 Matter 249/300 Energy 85/100 System Corruption 8% Temperature Cool (9) Movement Core (450) Ox8 Location -10/Subcaves Parts ------- > --- POWER (1) -------- (None) > --- PROPULSION (2) --- (None) > --- UTILITY (2) ------ Large Storage Unit > --- WEAPON (2) ------- Medium Laser Subdweller Machine Gun > --- INVENTORY (15) --- Cargo Legs Improved Heat Sink High-capacity Matter Pod (0) Machine Analyzer Targeting Computer Light Armor Plating Scrap Shield Recalibrator Subdweller Machine Gun Rocket Launcher Multitool Mining Claw Peak State ------------ > --- POWER ------------ Subdweller Power Source > --- PROPULSION ------- Light Treads Light Treads > --- UTILITY ---------- Large Storage Unit Makeshift Thermal Plating > --- WEAPON ----------- Subdweller Machine Gun Subdweller Machine Gun > --- INVENTORY -------- Cargo Legs Improved Heat Sink Machine Analyzer Targeting Computer Light Armor Plating Scrap Shield Recalibrator EM Pulse Gun Medium Laser Subdweller Machine Gun Rocket Launcher Multitool Mining Claw [Rating: 17] Favorites ----------- Power Light Nuclear Core Engine Ion Engine Power Core Light Nuclear Core Propulsion Light Treads Treads Light Treads Leg Aluminum Leg Hover Unit Makeshift Hover Unit Utility Large Storage Unit Device Structural Scanner Storage Large Storage Unit Protection Makeshift Thermal Plating Weapon Assault Rifle Energy Gun EM Pulse Gun Ballistic Gun Assault Rifle Slashing Weapon Mining Claw Build | -11 -10 -10 ------- Run | Yrd Mat Sub Slots Evolved . | . . . Power . | . . . Propulsion . | . . . Utility . | . . . Weapon . | . . . Parts Attached 29 | . 7 22 Power 3 | . 1 2 Engine 1 | . . 1 Core 2 | . 1 1 Reactor . | . . . Propulsion 5 | . 3 2 Treads 4 | . 3 1 Leg . | . . . Wheel . | . . . Hover 1 | . . 1 Flight . | . . . Utility 4 | . 3 1 Device 1 | . 1 . Storage 1 | . 1 . Processor . | . . . Hackware . | . . . Protection 2 | . 1 1 Artifact . | . . . Weapon 17 | . . 17 Energy Gun 6 | . . 6 Energy Cannon . | . . . Ballistic Gun 7 | . . 7 Ballistic Cannon . | . . . Launcher . | . . . Special Weapon . | . . . Impact Weapon . | . . . Slashing Weapon 4 | . . 4 Piercing Weapon . | . . . Special Melee Weapon . | . . . Unidentified Prototypes . | . . . Corrupted Parts 2 | . . 2 System Corruption 6 | . . 6 Parts Lost 10 | . . 10 Power 3 | . . 3 Propulsion 2 | . . 2 Utility 1 | . . 1 Weapon 4 | . . 4 Highest Loss Streak 3 | . . 3 To Critical Strikes . | . . . Average Slot Usage (%) 95 | . 99 92 Engine 6 | . 8 4 Core 5 | . 5 5 Treads 17 | . 9 24 Leg 8 | . 18 . Device 4 | . 9 . Storage 14 | . 14 14 Protection 9 | . 4 13 Energy Gun 9 | . . 17 Ballistic Gun 17 | . 28 8 Slashing Weapon 1 | . . 2 Peak Build Rating 17 | 6 11 17 Average Rating 11 | 6 9 13 On Entrance 7 | 6 6 11 Naked Turns . | . . . Heaviest Build 37 | 14 32 37 Greatest Support 40 | 20 40 40 Greatest Overweight (x) 8 | . 1 8 Average Overweight (x) . | . . . Largest Inventory Capacity 15 | 8 15 15 Average Capacity 14 | 8 13 15 Most Carried 15 | 5 15 15 Average Carried 12 | 4 11 13 Final Capacity 15 | 8 15 15 Final Carried 14 | 4 13 14 Class Distribution -------------------- 97% | Mutant Dominant Class ---------------- Mutant | -10/Materials Mutant | -10/Subcaves Resources | -11 -10 -10 ----------- Run | Yrd Mat Sub Matter Collected 915 | 200 299 416 Remotely . | . . . Salvage Created 1367 | . 491 876 Parts 73 | . 24 49 Haulers Intercepted 1 | . 1 . Recyclers Shooed 2 | . 2 . Parts Field Recycled . | . . . Retrieved Matter . | . . . Parts Self-Destructed 11 | . . 11 Prevented 6 | . . 6 Kills | -11 -10 -10 ------- Run | Yrd Mat Sub Combat Hostiles Destroyed 27 | . 10 17 Guns 27 | . 10 17 Classes Destroyed 9 | . 5 4 Hauler 1 | . 1 . Mechanic 1 | . 1 . Turret 2 | . . 2 Watcher 1 | . 1 . Swarmer 4 | . 3 1 Grunt 11 | . 7 4 Sentry 1 | . . 1 Artisan 1 | . . 1 Subdweller 11 | . . 11 Best Kill Streak 3 | . 3 2 Combat Bots Only 3 | . 3 2 Max Kills in Single Turn 2 | . 2 1 Gunslinging 1 | . 1 . Exploded . | . . . Melee . | . . . Uniques/NPCs Destroyed . | . . . Combat | -11 -10 -10 -------- Run | Yrd Mat Sub Hostile Shots Fired 215 | . 52 163 Missed 74 | . 15 59 Damage Taken 1575 | . 354 1221 Core 250 | . 51 199 Absorbed by Shields . | . . . Ignored by Resistances 547 | . 108 439 Core Remaining (%) 100 | 100 . . Volleys Fired 123 | . 42 81 Largest 2 | . 2 2 Hottest 90 | . 40 90 Shots Fired 233 | . 85 148 Gun 233 | . 85 148 Cannon . | . . . Launcher . | . . . Special . | . . . Kinetic 156 | . 85 71 Thermal 17 | . . 17 Explosive . | . . . Electromagnetic 60 | . . 60 Robot Hit Streak 38 | . 24 38 Robot Miss Streak 2 | . 2 1 Penetration Max . | . . . Secondary Targets 3 | . 1 2 Max Gunslinging Chain 1 | . 1 1 Shots Hit Robots 185 | . 72 113 Core Hits 66 | . 24 42 Critical Kills . | . . . Critical Parts Destroyed 1 | . 1 . Critical Strikes 3 | . 1 2 Burn 1 | . . 1 Destroy 1 | . 1 . Corrupt 1 | . . 1 Melee Attacks 15 | . . 15 Impact . | . . . Slashing 15 | . . 15 Piercing . | . . . Sneak Attacks . | . . . Combat Hostiles . | . . . Follow-up Attacks . | . . . Damage Inflicted 2519 | . 956 1563 Guns 2445 | . 925 1520 Cannons . | . . . Explosions 43 | . . 43 Melee . | . . . Ramming 31 | . 31 . Kinetic 1741 | . 925 816 Thermal 158 | . . 158 Explosive . | . . . Electromagnetic 589 | . . 589 Impact . | . . . Slashing . | . . . Piercing . | . . . Highest Corruption 8 | . 2 8 Average Corruption 2 | . 1 3 Corruption Purged . | . . . Corruption Blocked . | . . . Effects 56 | . 18 38 Message Errors 7 | . 3 4 Matter Fused 15 | . 4 11 Heat Flow Errors 6 | . 1 5 Energy Discharges 10 | . 3 7 Data Loss (minor) 4 | . 2 2 Data Loss (major) 6 | . 1 5 Misfires 4 | . 2 2 Alerts 2 | . 1 1 Weapon Failures 2 | . 1 1 Overload Shots . | . . . Overflow Damage . | . . . Projectiles . | . . . Explosions . | . . . Melee . | . . . Knockbacks . | . . . Impact . | . . . Kinetic . | . . . Secondary . | . . . Self-Inflicted Damage . | . . . Shots . | . . . Rammed . | . . . Targets Rammed 6 | . 6 . Kicked 6 | . 6 . Crushed . | . . . Highest Temperature 245 | . 222 245 Average Temperature 51 | . 31 69 Received Heat Transfer 798 | . 261 537 Siege Activations . | . . . Robots Corrupted . | . . . Combat Hostiles . | . . . Parts Fried 1 | . . 1 Impact Corruptions . | . . . Robots Melted . | . . . Combat Hostiles . | . . . Parts Melted . | . . . Heat Transferred 457 | . . 457 Parts Sabotaged . | . . . Parts Stolen . | . . . Parts Stripped . | . . . Power Chain Reactions 1 | . . 1 Alert | -11 -10 -10 ------- Run | Yrd Mat Sub Peak Influence 246 | . 246 . Initial . | . . . Average 66 | . 66 . Maximum Alert Level 1 | . 1 . Low Security (%) 97 | 100 97 . Level 1 2 | . 2 . Level 2 . | . . . Level 3 . | . . . Level 4 . | . . . Level 5 . | . . . High Security . | . . . Max Security . | . . . Squads Dispatched 2 | . 2 . Investigation 2 | . 2 . Extermination . | . . . Reinforcement . | . . . Assault . | . . . Garrison . | . . . Intercept . | . . . Searches Triggered . | . . . Construction Impeded . | . . . Haulers Reinforced . | . . . Active Scanning Responses . | . . . Cargo Convoy Interrupts . | . . . Stealth | -11 -10 -10 --------- Run | Yrd Mat Sub Distress Signals 2 | . 2 . Communications Jammed . | . . . Distress Signals . | . . . Times Spotted 81 | . 23 58 Peak Tracking Total 5 | . 5 2 Tactical Retreats 6 | . 2 4 Traps | -11 -10 -10 ------- Run | Yrd Mat Sub Traps Triggered 4 | . 4 . Indirectly . | . . . Trap Hack Attempts . | . . . Triggered . | . . . Disarmed . | . . . Reprogrammed . | . . . Reused . | . . . Traps Extracted . | . . . Installed . | . . . Triggered . | . . . Machines | -11 -10 -10 ---------- Run | Yrd Mat Sub Machines Disabled 3 | . . 3 Max in Single Turn 1 | . . 1 Machines Repaired . | . . . Machines Dismantled . | . . . Machines Sabotaged . | . . . Overloaded Fab Kills . | . . . Hacking | -11 -10 -10 --------- Run | Yrd Mat Sub Machines Accessed 10 | . 10 . Terminals 7 | . 7 . Fabricators . | . . . Repair Stations 1 | . 1 . Recycling Units 2 | . 2 . Scanalyzers . | . . . Garrison Access . | . . . Total Hacks 30 | . 30 . Successful 15 | . 15 . Failed 14 | . 14 . Catastrophic 2 | . 2 . Database Lockouts 1 | . 1 . Manual 22 | . 22 . Terminals 27 | . 27 . Fabricators . | . . . Repair Stations 1 | . 1 . Recycling Units 2 | . 2 . Scanalyzers . | . . . Garrison Access . | . . . Terminal Hacks 7 | . 7 . Robot Analysis 2 | . 2 . Prototype ID Bank 1 | . 1 . Recycling Unit Index 1 | . 1 . Alert Level 1 | . 1 . Unreport Threat 1 | . 1 . Hauler Manifests 1 | . 1 . Fabricator Hacks . | . . . Repair Station Hacks . | . . . Recycling Unit Hacks . | . . . Scanalyzer . | . . . Garrison Access Hacks . | . . . Unauthorized Hacks 8 | . 8 . Terminals 5 | . 5 . Skim 5 | . 5 . Fabricators . | . . . Repair Stations 1 | . 1 . Mechanics 1 | . 1 . Recycling Units 2 | . 2 . Tunnel 2 | . 2 . Scanalyzers . | . . . Garrison Access . | . . . Data Cores Recovered . | . . . Used . | . . . Hacking Detections 8 | . 8 . Full Trace Events . | . . . Feedback Events . | . . . Feedback Blocked . | . . . Robot Schematics Acquired . | . . . Robots Built . | . . . Authchips . | . . . Time . | . . . Total Robot Build Rating . | . . . Part Schematics Acquired . | . . . Parts Built . | . . . Authchips . | . . . Time . | . . . Total Part Build Rating . | . . . Parts Repaired . | . . . Time . | . . . Parts Recycled . | . . . Recycled Matter . | . . . Retrieved Matter . | . . . Retrieved Components . | . . . Parts Scanalyzed . | . . . Part Schematics Acquired . | . . . Parts Damaged . | . . . Bothacking | -11 -10 -10 ------------ Run | Yrd Mat Sub Used RIF Installer . | . . . Robots Hacked . | . . . Non-combat . | . . . Combat . | . . . Robot Hacks Applied . | . . . Relay Couplers Released . | . . . Fabnet Peak Effective % . | . . . Robots Rewired . | . . . Allies Hacked . | . . . Hacks Repelled . | . . . Allies | -11 -10 -10 -------- Run | Yrd Mat Sub Total Allies . | . . . Largest Group . | . . . Highest-Rated Group . | . . . Highest-Rated Ally . | . . . Total Orders . | . . . Ally Attacks . | . . . Total Damage . | . . . Kills . | . . . Allies Corrupted . | . . . Allies Melted . | . . . Intel | -11 -10 -10 ------- Run | Yrd Mat Sub Robot Analysis Total 2 | . 2 . Derelict Logs Recovered 1 | . . 1 Drone Launches . | . . . Drone Recoveries . | . . . Exploration | -11 -10 -10 ------------- Run | Yrd Mat Sub Turns Passed 3559 | 2 1613 1944 Spaces Moved 1594 | 1 673 920 Core 2 | . . 2 Treads 1006 | . 88 918 Legs 586 | 1 585 . Wheels . | . . . Hover . | . . . Flight . | . . . Fastest Speed 120 | 120 120 160 Average Speed 166 | 120 156 173 Slowest Speed 450 | 120 190 450 Overloaded Moves . | . . . Propulsion Burnouts . | . . . Robots Hopped . | . . . Cave-ins Triggered . | . . . Exploration Rate (%) 47 | 2 87 52 Regions Visited 2 Branch Regions 1 Pre-discovered Areas 3 | . 2 1 Known Exits Taken 1 | . 1 . Unknown Exits Taken 1 | 1 . . Scrap Searched 1 | . . 1 Spaces Dug . | . . . Terrain Destroyed . | . . . Melee . | . . . Projectile . | . . . AOE . | . . . Terrain Rammed . | . . . Walls Destroyed . | . . . Machines Disabled . | . . . Actions | -11 -10 -10 --------- Run | Yrd Mat Sub Total 2240 | 2 1149 1089 Wait 433 | . 398 35 Move 1592 | . 672 920 Hop . | . . . Pick Up 24 | . 16 8 Fast Attach 5 | . 2 3 Attach 9 | . 3 6 Detach . | . . . Swap 15 | . 2 13 Drop 18 | 2 8 8 Fire 123 | . 42 81 Melee 15 | . . 15 Ram . | . . . Kick 6 | . 6 . Crush . | . . . Escape Stasis . | . . . Rewire . | . . . Trap . | . . . Miscellaneous . | . . . Route ------- -11/Scrapyard -10/Materials (discovered 5 exits: *Mat x3 / [*Min] / *Sub) -10/Subcaves (discovered 2 exits: *Mat / [*Rec]) History --------- Turn | Location | Event 3 | -11/Scrapyard | Discovered new exit (range 0) 3 | -11/Scrapyard | Entered Materials 115 | -10/Materials | Discovered new exit (range 16) 236 | -10/Materials | Discovered new exit (range 16) 312 | -10/Materials | Build established: Mutant 1005 | -10/Materials | Central database locked down 1076 | -10/Materials | Identified exit to Materials 1136 | -10/Materials | Learned 4 Subcaves zone layouts 1185 | -10/Materials | Learned 4 Recycling zone layouts 1223 | -10/Materials | Identified exit to Subcaves 1252 | -10/Materials | Learned 4 Subcaves zone layouts 1301 | -10/Materials | Learned Storage security intel 1341 | -10/Materials | Learned 2 Mines zone layouts 1616 | -10/Materials | Entered Subcaves 1617 | -10/Subcaves | Identified exit to Materials 2039 | -10/Subcaves | Ambushed by angry Subdweller bent on revenge 2251 | -10/Subcaves | Discovered new exit (range 12) 2629 | -10/Subcaves | Visited 4L-MR0's lab 2646 | -10/Subcaves | Found Prototype Leg 2810 | -10/Subcaves | Core integrity fell below 50% 2900 | -10/Subcaves | Learned location of Storage (-9) 2933 | -10/Subcaves | Ambushed by Subdweller buried in earth 2939 | -10/Subcaves | A swath of the cavern ceiling suddenly collapsed 3542 | -10/Subcaves | Core integrity fell below 20% 3560 | -10/Subcaves | Destroyed by 5U-6NR(R) with Subdweller Beam Cannon Last Messages --------------- 03286_ System corrupted: EM Pulse Gun misfires. 03313_ System corrupted: Matter fused (-8). 03353_ System corrupted: Substantial component data lost. 03380_ System corrupted: Matter fused (-6). 03396_ System corrupted: Matter fused (-5). 03414_ System corrupted: Energy discharge (-24). 03439_ System corrupted: Matter fused (-9). 03476_ System corrupted: Heat flow error (+109). 03499_ System corrupted: Energy discharge (-28). 03518_ JO3MAJ# QQYVEBK0 J9S4V 03539_ Lgt. Treads destroyed. 03539_ Mak. Thermal Plating destroyed. 03541_ System corrupted: Energy discharge (-30). 03543_ EM Pulse Gun destroyed. 03546_ Integrated Corrupted Sub. Machine Gun (+3). 03547_ N0-9HR(R) IFF system glitched. 03547_ N0-9HR(R) destroyed. 03555_ 5U-6NR(R) affixes Scrap Shield Fragment to Scrap Shield. 03559_ |U=RVP&ON, F::TOFWKNKOXIXF Map ----- +----------------------------------------------------+ | # ##??????????#" #####???????# ## | | # #??????????## ## "####???????# ## | | # #?????????#######" ####???????# ###" | | # #?????????# ### " ####????## #?# " | | # ##???????### ##???# #?## | | ## #???????## #???# ###?## | | ?# #####???# ## #???####???# | | ?# ## ###### #### ####??????????##### | | ?# ### #??## ###?????????????????? | | ?## # #??# #??????????????????? | | ??# #??; ##?????????????????? | | #### ####;; #?????????????????? | | # ##### # # ##; ;#?????????????????? | | #?## ######## R #??????????????????? | | #?# %# #?????## !%*#??????????????????? | | #?## # ##?##### ] #??????????????????? | | # #??## #??# ;; ##?????????????????? | | # ##### #??## #?????????????????? | | # # #???##; ##?????????????????? | | # #????#; * #??????????????????? | | #????#; %= ##?????????????????? | | #####&&& ##????#; #?????????????????? | | ##???##%& ###????## ######????????????? | | #????# &! ##??????# ; ##???????????? | | #????# #???????# & %& #???????????? | | #????# ####????## @ #???????????? | | #???## #####?# ;## ##???####??##? | | ???## ## #### ###%! #????# ### ## | | #??# ## ## ## ##?#### | | ##?# ### ## ### ### # | | #?# #?## " #?# ## #?? | | ### ##?# # #### #?## | | ## #?# # # #### | | ## #?# " " % | | ##?# "" #"" ##### | | % % ##??## " " ##"##""# #???## # | | ##????### """ ""############????######### | | % # " ##???????# """ " #??????????????????????? | | #### ""#????????# " ###??????????????????????? | | #?# ##???####?# ##????????????????????????? | | #?## ###### "#?# #####?????????????????????? | | #??#" "" "#?# #?????????????????????? | | ####"#"# "" #?## ## #?????????????????????? | | "###### &"=##??##### ##????????????????????? | | #??## %&"#????#### #????????????????????? | | #?## %%%"#???## #????????????????????? | | [ "#?# [ !*&##### ##????????????????????? | | "#?## ###% "" ## # #?????????????????????? | | """#??# # "" ##????????????????????? | | ####??## ! #????????????????????? | +----------------------------------------------------+ Best States ------------- Heat Dissipation 25 Energy Generation 15 Energy Capacity 250 Matter Stores 300 Matter Capacity 300 Sight Range 16 Terrain Scan Density 10 Armor Coverage 150 Resistance: KI 20 Resistance: TH 30 Resistance: EX 20 Resistance: EM 20 Resistance: I 20 Resistance: S 20 Resistance: P 20 Evasion (%) 55 Recoil Reduction 2 Offensive Hacking 10 Item Schematics ----------------- None Robot Schematics ------------------ None Fabricated ------------ Nothing Alien Tech Used ----------------- None Achievements -------------- None Challenges ------------ None Game ------ Seed ShadeActuatorReplica Manual? 0 Play Time 00:22:06 Cumulative 324.0 hours Start 2024.08.29 @ 14:36:14 End 2024.08.29 @ 14:55:11 Sessions 1 Manual Loads 0 Difficulty Adventurer Special Mode None Game No. 248 Rogue 63 Adventurer 159 Explorer 26 Win Type - Total 1 Types 1/0/0/0/0/0/0/0/0 Lore% 77 Gallery% 74 Achievement% 68 Wizard Run 0 Options --------- Layout 2 ASCII 0 Keyboard 0 Movement Mouse Keybinds 0 Fullscreen 0 Font 18/CogNarrow Map View 64x51 Zoom Use 0% Tactical HUD 1 Map Filters NONE Filters BRIGHTNESS(115)|SATURATION(100)|LOW_CONTRAST(0,16,30) Steam 1 RUN: 9d1efff8-6d01-439d-a04b-821cc18be3a0